[Event "9th RTU Open 2019"]
[Site "Riga"]
[Date "2019.08.06"]
[Round "3.8"]
[White "Gretarsson, Helgi Ass"]
[Black "Michalik, Peter"]
[Result "0-1"]
[ECO "E11"]
[WhiteElo "2412"]
[BlackElo "2573"]
[Annotator "ChessBase"]
[PlyCount "62"]
[EventDate "2019.08.05"]
[EventType "swiss"]
[EventCountry "LAT"]
[SourceTitle "playchess.com"]
[Source "ChessBase"]
[SourceQuality "1"]
[TimeControl "5400+30"]

1. d4 {[%emt 0:00:00]} Nf6 {[%emt 0:00:00]} 2. c4 {[%emt 0:00:00]} e6 {[%emt 0:00:05]} 3. Nf3 {[%emt 0:00:06]} d5 {[%emt 0:00:08]} 4. g3 {[%emt 0:01:08]} Bb4+ {[%emt 0:00:18]} 5. Bd2 {[%emt 0:00:19]} Be7 {[%emt 0:00:06]} 6. Bg2 {[%emt 0:00:09]} O-O {[%emt 0:00:06]} 7. O-O {[%emt 0:00:16]} c6 {[%emt 0:00:21]} 8. Qc2 {[%emt 0:09:28]} Nbd7 {[%emt 0:00:30]} 9. Rd1 {[%emt 0:23:17]} b6 {[%emt 0:00:45]} 10. Bg5 {[%emt 0:11:04]} Ba6 {[%emt 0:03:50]} 11. Nbd2 {[%emt 0:00:41]} Rc8 {[%emt 0:00:17]} 12. Rac1 {[%emt 0:00:56]} h6 {[%emt 0:28:59]} 13. Bxf6 {[%emt 0:01:35]} Nxf6 {[%emt 0:00:05]} 14. e4 {[%emt 0:03:53]} Bb7 {[%emt 0:07:16]} 15. c5 {[%emt 0:12:54]} Ba6 {[%emt 0:09:14]} 16. exd5 {[%emt 0:08:16]} exd5 {[%emt 0:01:49]} 17. Bh3 {[%emt 0:03:36]} Rc7 {[%emt 0:00:28]} 18. Ne5 {[%emt 0:00:19]} bxc5 {[%emt 0:00:34]} 19. dxc5 {[%emt 0:00:21]} Bc8 {[%emt 0:00:07]} 20. Bxc8 {[%emt 0:01:08]} Qxc8 {[%emt 0:02:21]} 21. Qa4 {[%emt 0:00:06]} Re8 {[%emt 0:02:42]} 22. Re1 {[%emt 0:05:51]} Bf8 {[%emt 0:01:20]} 23. Qf4 {[%emt 0:11:08]} Rce7 {[%emt 0:01:04]} 24. b4 {[%emt 0:01:07]} Ne4 {[%emt 0:02:18]} 25. Rxe4 {[%emt 0:04:07]} dxe4 {[%emt 0:00:06]} 26. Ndc4 {[%emt 0:00:04]} Qe6 {[%emt 0:04:23]} 27. Rd1 {[%emt 0:00:55]} f6 {[%emt 0:00:30]} 28. Rd6 {[%emt 0:00:37]} fxe5 {[%emt 0:00:20]} 29. Qxe4 {[%emt 0:00:01]} Qf7 {[%emt 0:01:16]} 30. Rxc6 {[%emt 0:00:06]} Rd7 {[%emt 0:00:47]} 31. Nxe5 {[%emt 0:00:11]} Rd5 {[%emt 0:01:24]} 0-1

[Event "9th RTU Open 2019"]
[Site "Riga"]
[Date "2019.08.06"]
[Round "3.9"]
[White "Nguyen, Piotr"]
[Black "Puranik, Abhimanyu"]
[Result "0-1"]
[ECO "A03"]
[WhiteElo "2420"]
[BlackElo "2550"]
[Annotator "ChessBase"]
[PlyCount "62"]
[EventDate "2019.08.05"]
[EventType "swiss"]
[EventCountry "LAT"]
[SourceTitle "playchess.com"]
[Source "ChessBase"]
[SourceQuality "1"]
[TimeControl "5400+30"]

1. f4 {[%emt 0:00:00]} d5 {[%emt 0:00:00]} 2. Nf3 {[%emt 0:00:00]} g6 {[%emt 0:00:17]} 3. g3 {[%emt 0:00:00]} Bg7 {[%emt 0:00:08]} 4. Bg2 {[%emt 0:00:00]} c5 {[%emt 0:01:02]} 5. O-O {[%emt 0:00:11]} Nf6 {[%emt 0:00:17]} 6. d3 {[%emt 0:00:16]} O-O {[%emt 0:01:42]} 7. Nc3 {[%emt 0:00:41]} d4 {[%emt 0:02:05]} 8. Na4 {[%emt 0:00:12]} Qa5 {[%emt 0:16:25]} 9. b3 {[%emt 0:01:08]} Nbd7 {[%emt 0:03:29]} 10. e4 {[%emt 0:25:50]} dxe3 {[%emt 0:02:36]} 11. Bb2 {[%emt 0:03:26]} Qc7 {[%emt 0:15:44]} 12. Qe2 {[%emt 0:04:28]} b6 {[%emt 0:00:52]} 13. f5 {[%emt 0:13:05]} Bb7 {[%emt 0:01:03]} 14. fxg6 {[%emt 0:00:55]} hxg6 {[%emt 0:00:28]} 15. Qxe3 {[%emt 0:02:21]} Rae8 {[%emt 0:01:02]} 16. Rae1 {[%emt 0:01:56]} e5 {[%emt 0:02:49]} 17. Nc3 {[%emt 0:06:51]} Nh7 {[%emt 0:08:53]} 18. Nh4 {[%emt 0:03:01]} Bxg2 {[%emt 0:03:40]} 19. Kxg2 {[%emt 0:00:33]} Nb8 {[%emt 0:07:58]} 20. g4 {[%emt 0:07:48]} Nc6 {[%emt 0:02:37]} 21. Ne4 {[%emt 0:00:43]} Nd4 {[%emt 0:00:57]} 22. Bxd4 {[%emt 0:00:34]} cxd4 {[%emt 0:00:05]} 23. Qg3 {[%emt 0:05:45]} Qxc2+ {[%emt 0:01:49]} 24. Rf2 {[%emt 0:00:08]} Qc6 {[%emt 0:00:18]} 25. g5 {[%emt 0:00:14]} Re6 {[%emt 0:07:10]} 26. Ref1 {[%emt 0:08:18]} Qc7 {[%emt 0:03:42]} 27. Nf3 {[%emt 0:03:00]} Rc6 {[%emt 0:01:33]} 28. Nfd2 {[%emt 0:01:37]} Rc1 {[%emt 0:05:56]} 29. Qh4 {[%emt 0:04:34]} Rxf1 {[%emt 0:00:48]} 30. Rxf1 {[%emt 0:00:03]} Qc2 {[%emt 0:02:39]} 31. Qh3 {[%emt 0:06:56]} Nxg5 {[%emt 0:00:59]} 0-1

[Event "9th RTU Open 2019"]
[Site "Riga"]
[Date "2019.08.06"]
[Round "3.10"]
[White "Meshkovs, Nikita"]
[Black "Baskin, Robert"]
[Result "1/2-1/2"]
[ECO "D97"]
[WhiteElo "2550"]
[BlackElo "2398"]
[Annotator "ChessBase"]
[PlyCount "21"]
[EventDate "2019.08.05"]
[EventType "swiss"]
[EventCountry "LAT"]
[SourceTitle "playchess.com"]
[Source "ChessBase"]
[SourceQuality "1"]
[TimeControl "5400+30"]

1. d4 {[%emt 0:00:00]} Nf6 {[%emt 0:00:00]} 2. c4 {[%emt 0:00:01]} g6 {[%emt 0:00:01]} 3. Nf3 {[%emt 0:08:00]} Bg7 {[%emt 0:00:47]} 4. Nc3 {[%emt 0:01:36]} d5 {[%emt 0:00:15]} 5. Qb3 {[%emt 0:00:21]} dxc4 {[%emt 0:00:24]} 6. Qxc4 {[%emt 0:00:03]} O-O {[%emt 0:00:13]} 7. e4 {[%emt 0:00:05]} a6 {[%emt 0:00:36]} 8. Bf4 {[%emt 0:13:17]} b5 {[%emt 0:04:49]} 9. Qb3 {[%emt 0:00:20]} Bb7 {[%emt 0:07:58]} 10. d5 {[%emt 0:02:11]} c6 {[%emt 0:01:19]} 11. Rd1 {[%emt 0:12:38]} 1/2-1/2

[Event "9th RTU Open 2019"]
[Site "Riga"]
[Date "2019.08.06"]
[Round "3.11"]
[White "Akash G"]
[Black "Deepan Chakkravarthy J."]
[Result "1/2-1/2"]
[ECO "B46"]
[WhiteElo "2394"]
[BlackElo "2532"]
[Annotator "ChessBase"]
[PlyCount "55"]
[EventDate "2019.08.05"]
[EventType "swiss"]
[EventCountry "LAT"]
[SourceTitle "playchess.com"]
[Source "ChessBase"]
[SourceQuality "1"]
[TimeControl "5400+30"]

1. e4 {[%emt 0:00:18]} c5 {[%emt 0:03:29]} 2. Nf3 {[%emt 0:00:14]} e6 {[%emt 0:00:06]} 3. d4 {[%emt 0:00:07]} cxd4 {[%emt 0:00:04]} 4. Nxd4 {[%emt 0:00:06]} Nc6 {[%emt 0:00:26]} 5. Nc3 {[%emt 0:00:27]} a6 {[%emt 0:02:02]} 6. Nxc6 {[%emt 0:02:14]} bxc6 {[%emt 0:00:15]} 7. Bd3 {[%emt 0:00:19]} d5 {[%emt 0:00:07]} 8. O-O {[%emt 0:00:44]} Nf6 {[%emt 0:00:05]} 9. Re1 {[%emt 0:03:38]} Be7 {[%emt 0:00:45]} 10. e5 {[%emt 0:03:11]} Nd7 {[%emt 0:00:08]} 11. Qg4 {[%emt 0:00:06]} Kf8 {[%emt 0:01:30]} 12. Na4 {[%emt 0:04:52]} Rb8 {[%emt 0:18:41]} 13. Bd2 {[%emt 0:06:41]} c5 {[%emt 0:03:53]} 14. c4 {[%emt 0:04:03]} d4 {[%emt 0:00:26]} 15. f4 {[%emt 0:12:45]} h5 {[%emt 0:01:49]} 16. Qh3 {[%emt 0:00:51]} g6 {[%emt 0:01:44]} 17. Re2 {[%emt 0:02:35]} Kg7 {[%emt 0:14:15]} 18. Rf1 {[%emt 0:02:50]} Nf8 {[%emt 0:00:19]} 19. b3 {[%emt 0:04:42]} Rh7 {[%emt 0:03:48]} 20. Nb2 {[%emt 0:08:26]} Bb7 {[%emt 0:00:57]} 21. Nd1 {[%emt 0:04:51]} Bc6 {[%emt 0:02:41]} 22. Nf2 {[%emt 0:04:59]} a5 {[%emt 0:00:46]} 23. Ne4 {[%emt 0:02:17]} a4 {[%emt 0:03:06]} 24. bxa4 {[%emt 0:01:33]} Rb2 {[%emt 0:01:21]} 25. a5 {[%emt 0:08:55]} Rxa2 {[%emt 0:02:27]} 26. Bb1 {[%emt 0:04:30]} Ra1 {[%emt 0:13:07]} 27. Qb3 {[%emt 0:01:50]} Nd7 {[%emt 0:00:41]} 28. Qb2 {[%emt 0:07:15]} 1/2-1/2

[Event "9th RTU Open 2019"]
[Site "Riga"]
[Date "2019.08.06"]
[Round "3.12"]
[White "Seeman, Tarvo"]
[Black "Gukesh D"]
[Result "1/2-1/2"]
[ECO "A14"]
[WhiteElo "2377"]
[BlackElo "2520"]
[Annotator "ChessBase"]
[PlyCount "193"]
[EventDate "2019.08.05"]
[EventType "swiss"]
[EventCountry "LAT"]
[SourceTitle "playchess.com"]
[Source "ChessBase"]
[SourceQuality "1"]
[TimeControl "5400+30"]

1. Nf3 {[%emt 0:00:00]} d5 {[%emt 0:01:36]} 2. g3 {[%emt 0:00:01]} Nf6 {[%emt 0:00:24]} 3. Bg2 {[%emt 0:00:20]} e6 {[%emt 0:00:15]} 4. O-O {[%emt 0:00:51]} Be7 {[%emt 0:00:04]} 5. b3 {[%emt 0:02:37]} O-O {[%emt 0:01:31]} 6. Bb2 {[%emt 0:04:01]} c5 {[%emt 0:00:27]} 7. e3 {[%emt 0:01:08]} Nc6 {[%emt 0:00:55]} 8. c4 {[%emt 0:03:53]} d4 {[%emt 0:08:51]} 9. exd4 {[%emt 0:00:24]} cxd4 {[%emt 0:00:06]} 10. Re1 {[%emt 0:00:09]} Re8 {[%emt 0:04:56]} 11. Ne5 {[%emt 0:11:21]} Nxe5 {[%emt 0:03:21]} 12. Rxe5 {[%emt 0:00:07]} Nd7 {[%emt 0:03:25]} 13. Re1 {[%emt 0:00:39]} e5 {[%emt 0:06:40]} 14. d3 {[%emt 0:14:50]} Bb4 {[%emt 0:05:54]} 15. Re2 {[%emt 0:04:33]} Bd6 {[%emt 0:02:15]} 16. Nd2 {[%emt 0:07:06]} Nc5 {[%emt 0:02:11]} 17. Ba3 {[%emt 0:04:44]} Bg4 {[%emt 0:13:45]} 18. Bf3 {[%emt 0:04:50]} Bxf3 {[%emt 0:02:03]} 19. Nxf3 {[%emt 0:00:06]} b6 {[%emt 0:04:56]} 20. Bxc5 {[%emt 0:04:50]} bxc5 {[%emt 0:00:06]} 21. Qf1 {[%emt 0:00:53]} Bc7 {[%emt 0:05:47]} 22. Qg2 {[%emt 0:02:28]} Rb8 {[%emt 0:01:23]} 23. Rae1 {[%emt 0:11:07]} Ba5 {[%emt 0:00:29]} 24. Rd1 {[%emt 0:00:08]} Qf6 {[%emt 0:03:14]} 25. h4 {[%emt 0:02:54]} h6 {[%emt 0:05:10]} 26. h5 {[%emt 0:01:21]} Rb6 {[%emt 0:03:12]} 27. Re4 {[%emt 0:02:41]} Bc3 {[%emt 0:01:28]} 28. Rc1 {[%emt 0:03:27]} Rbe6 {[%emt 0:05:59]} 29. Rc2 {[%emt 0:00:25]} Ba5 {[%emt 0:00:52]} 30. Rce2 {[%emt 0:02:28]} Bc7 {[%emt 0:00:06]} 31. Qh1 {[%emt 0:02:22]} Rf8 {[%emt 0:04:36]} 32. g4 {[%emt 0:03:15]} Qe7 {[%emt 0:00:45]} 33. Qh3 {[%emt 0:01:13]} a5 {[%emt 0:02:09]} 34. Kg2 {[%emt 0:01:14]} Qe8 {[%emt 0:02:50]} 35. Nh4 {[%emt 0:01:23]} Bd8 {[%emt 0:00:28]} 36. Nf3 {[%emt 0:00:33]} Bc7 {[%emt 0:00:37]} 37. Nh4 {[%emt 0:00:06]} a4 {[%emt 0:02:02]} 38. Nf5 {[%emt 0:02:23]} axb3 {[%emt 0:00:35]} 39. axb3 {[%emt 0:00:02]} Qb8 {[%emt 0:01:15]} 40. f4 {[%emt 0:00:43]} Qxb3 {[%emt 0:01:55]} 41. fxe5 {[%emt 0:00:11]} Rfe8 {[%emt 0:01:01]} 42. Qg3 {[%emt 0:01:58]} Qb8 {[%emt 0:00:45]} 43. Nd6 {[%emt 0:00:37]} R8e7 {[%emt 0:00:33]} 44. Nf5 {[%emt 0:00:09]} Re8 {[%emt 0:00:09]} 45. Nd6 {[%emt 0:00:03]} Rd8 {[%emt 0:00:51]} 46. Nb5 {[%emt 0:00:48]} Rd7 {[%emt 0:00:24]} 47. Nxc7 {[%emt 0:00:58]} Qxc7 {[%emt 0:00:04]} 48. Qf3 {[%emt 0:00:31]} Rde7 {[%emt 0:00:25]} 49. Qf5 {[%emt 0:00:22]} Qb7 {[%emt 0:00:25]} 50. Qf3 {[%emt 0:00:12]} Qb8 {[%emt 0:00:18]} 51. Qf5 {[%emt 0:00:15]} Qb1 {[%emt 0:00:43]} 52. Qf3 {[%emt 0:00:24]} Ra7 {[%emt 0:01:01]} 53. Re1 {[%emt 0:00:41]} Ra2+ {[%emt 0:00:19]} 54. Kh3 {[%emt 0:00:36]} Qb3 {[%emt 0:00:32]} 55. Rf1 {[%emt 0:00:32]} Kh8 {[%emt 0:00:48]} 56. Ree1 {[%emt 0:01:07]} Qc2 {[%emt 0:00:26]} 57. Qg3 {[%emt 0:00:15]} Kg8 {[%emt 0:00:32]} 58. Ra1 {[%emt 0:00:56]} Rea6 {[%emt 0:00:26]} 59. Rac1 {[%emt 0:00:20]} Qd2 {[%emt 0:00:24]} 60. Rcd1 {[%emt 0:00:16]} Qc2 {[%emt 0:00:41]} 61. Rc1 {[%emt 0:00:09]} Qd2 {[%emt 0:00:31]} 62. Rcd1 {[%emt 0:00:03]} Qe3 {[%emt 0:00:07]} 63. Qxe3 {[%emt 0:00:55]} dxe3 {[%emt 0:00:01]} 64. Rde1 {[%emt 0:00:35]} e2 {[%emt 0:00:26]} 65. Rf2 {[%emt 0:01:20]} R6a3 {[%emt 0:00:11]} 66. Rfxe2 {[%emt 0:00:37]} Rxd3+ {[%emt 0:00:55]} 67. Kg2 {[%emt 0:00:11]} Rxe2+ 68. Rxe2 {[%emt 0:00:02]} Rd4 {[%emt 0:00:41]} 69. Kf3 {[%emt 0:00:08]} Rxc4 {[%emt 0:00:57]} 70. e6 {[%emt 0:00:05]} fxe6 {[%emt 0:01:15]} 71. Rxe6 {[%emt 0:00:02]} Rd4 {[%emt 0:00:24]} 72. Rc6 {[%emt 0:00:07]} Rd5 {[%emt 0:00:33]} 73. Rc7 {[%emt 0:00:11]} Kf8 {[%emt 0:00:10]} 74. Rc8+ {[%emt 0:01:40]} Kf7 {[%emt 0:00:42]} 75. Rc7+ {[%emt 0:00:03]} Kf6 {[%emt 0:00:15]} 76. Rc6+ {[%emt 0:00:05]} Ke7 {[%emt 0:00:27]} 77. Rc7+ {[%emt 0:00:11]} Kf8 {[%emt 0:00:04]} 78. Rc8+ {[%emt 0:00:07]} Kf7 {[%emt 0:00:23]} 79. Rc7+ {[%emt 0:00:09]} Kg8 {[%emt 0:00:52]} 80. Rc8+ {[%emt 0:00:08]} Kh7 {[%emt 0:00:05]} 81. Ke4 {[%emt 0:01:04]} Rd4+ {[%emt 0:00:14]} 82. Kf5 {[%emt 0:00:13]} Rc4 {[%emt 0:00:39]} 83. Rc7 {[%emt 0:00:54]} Rc1 {[%emt 0:00:41]} 84. Rc8 {[%emt 0:00:28]} c4 {[%emt 0:00:51]} 85. Kf4 {[%emt 0:00:21]} c3 {[%emt 0:00:30]} 86. Kf3 {[%emt 0:00:52]} c2 {[%emt 0:00:20]} 87. Kg2 {[%emt 0:00:06]} g5 {[%emt 0:00:07]} 88. hxg6+ {[%emt 0:01:25]} Kxg6 {[%emt 0:00:02]} 89. Rc5 {[%emt 0:00:07]} Kf6 {[%emt 0:00:05]} 90. Kh2 {[%emt 0:01:27]} Ke6 {[%emt 0:00:03]} 91. Kg2 {[%emt 0:00:15]} Kd6 {[%emt 0:00:02]} 92. Rc8 {[%emt 0:00:09]} Ke5 {[%emt 0:00:04]} 93. Rc5+ {[%emt 0:01:21]} Kf4 {[%emt 0:00:25]} 94. Rc4+ {[%emt 0:00:04]} Ke3 {[%emt 0:00:22]} 95. Rc8 {[%emt 0:00:11]} Kd3 {[%emt 0:00:22]} 96. Rd8+ {[%emt 0:00:07]} Ke4 {[%emt 0:00:10]} 97. Rc8 {[%emt 0:00:17]} 1/2-1/2

[Event "9th RTU Open 2019"]
[Site "Riga"]
[Date "2019.08.06"]
[Round "3.13"]
[White "Nevednichy, Vladislav"]
[Black "Baum, Jonasz"]
[Result "1-0"]
[ECO "D42"]
[WhiteElo "2531"]
[BlackElo "2308"]
[Annotator "ChessBase"]
[PlyCount "83"]
[EventDate "2019.08.05"]
[EventType "swiss"]
[EventCountry "LAT"]
[SourceTitle "playchess.com"]
[Source "ChessBase"]
[SourceQuality "1"]
[TimeControl "5400+30"]

1. e4 {[%emt 0:00:00]} c6 {[%emt 0:00:00]} 2. c4 {[%emt 0:00:25]} d5 {[%emt 0:00:00]} 3. exd5 {[%emt 0:00:05]} cxd5 {[%emt 0:00:00]} 4. cxd5 {[%emt 0:00:02]} Nf6 {[%emt 0:00:00]} 5. Nc3 {[%emt 0:00:04]} Nxd5 {[%emt 0:00:17]} 6. Nf3 {[%emt 0:00:03]} e6 {[%emt 0:00:38]} 7. d4 {[%emt 0:00:41]} Be7 {[%emt 0:00:32]} 8. Bd3 {[%emt 0:00:07]} O-O {[%emt 0:00:39]} 9. O-O {[%emt 0:00:07]} Nc6 {[%emt 0:00:37]} 10. Re1 {[%emt 0:00:26]} Bf6 {[%emt 0:08:25]} 11. Be4 {[%emt 0:01:18]} Nce7 {[%emt 0:00:18]} 12. Qd3 {[%emt 0:04:12]} g6 {[%emt 0:02:03]} 13. h4 {[%emt 0:01:56]} h5 {[%emt 0:07:16]} 14. Bh6 {[%emt 0:07:31]} Bg7 {[%emt 0:00:35]} 15. Bg5 {[%emt 0:07:34]} Nf6 {[%emt 0:03:40]} 16. Rad1 {[%emt 0:03:45]} Nxe4 {[%emt 0:01:07]} 17. Qxe4 {[%emt 0:02:41]} f6 {[%emt 0:01:58]} 18. Bc1 {[%emt 0:12:16]} Qa5 {[%emt 0:05:20]} 19. d5 {[%emt 0:02:37]} Nxd5 {[%emt 0:02:36]} 20. Nxd5 {[%emt 0:00:20]} exd5 {[%emt 0:00:06]} 21. Qxg6 {[%emt 0:00:12]} Qc7 {[%emt 0:05:36]} 22. Qxh5 {[%emt 0:00:14]} Qf7 {[%emt 0:00:46]} 23. Qxd5 {[%emt 0:02:16]} Qxd5 {[%emt 0:01:51]} 24. Rxd5 {[%emt 0:00:03]} Bg4 {[%emt 0:00:38]} 25. Nh2 {[%emt 0:01:06]} Rfe8 {[%emt 0:01:16]} 26. Rxe8+ {[%emt 0:01:01]} Rxe8 {[%emt 0:00:02]} 27. Nxg4 {[%emt 0:01:07]} Re1+ {[%emt 0:00:05]} 28. Kh2 {[%emt 0:00:02]} Rxc1 {[%emt 0:00:05]} 29. Rd8+ {[%emt 0:01:00]} Kh7 {[%emt 0:00:05]} 30. Rd7 {[%emt 0:01:40]} f5 {[%emt 0:01:44]} 31. Ne3 {[%emt 0:00:08]} Kh8 {[%emt 0:00:13]} 32. Rxb7 {[%emt 0:03:26]} Be5+ {[%emt 0:00:22]} 33. g3 {[%emt 0:00:05]} f4 {[%emt 0:00:15]} 34. Ng4 {[%emt 0:00:18]} fxg3+ {[%emt 0:00:31]} 35. fxg3 {[%emt 0:00:03]} Rc2+ {[%emt 0:00:05]} 36. Kh3 {[%emt 0:00:05]} Bxb2 {[%emt 0:00:19]} 37. Rxa7 {[%emt 0:00:09]} Bd4 {[%emt 0:00:16]} 38. Rd7 {[%emt 0:01:35]} Rc4 {[%emt 0:00:20]} 39. Re7 {[%emt 0:02:11]} Rc2 {[%emt 0:00:39]} 40. a4 {[%emt 0:00:43]} Ra2 {[%emt 0:00:05]} 41. Re4 {[%emt 0:04:06]} Rxa4 {[%emt 0:00:07]} 42. Nh2 {[%emt 0:00:07]} 1-0

[Event "9th RTU Open 2019"]
[Site "Riga"]
[Date "2019.08.06"]
[Round "3.14"]
[White "Vishnu Prasanna. V"]
[Black "Kramer, Julian"]
[Result "1-0"]
[ECO "C78"]
[WhiteElo "2505"]
[BlackElo "2352"]
[Annotator "ChessBase"]
[PlyCount "93"]
[EventDate "2019.08.05"]
[EventType "swiss"]
[EventCountry "LAT"]
[SourceTitle "playchess.com"]
[Source "ChessBase"]
[SourceQuality "1"]
[TimeControl "5400+30"]

1. e4 {[%emt 0:00:00]} e5 {[%emt 0:00:00]} 2. Nf3 {[%emt 0:00:00]} Nc6 {[%emt 0:00:00]} 3. Bb5 {[%emt 0:00:00]} a6 {[%emt 0:00:00]} 4. Ba4 {[%emt 0:00:00]} Nf6 {[%emt 0:00:00]} 5. O-O {[%emt 0:00:00]} b5 {[%emt 0:00:01]} 6. Bb3 {[%emt 0:00:01]} Bc5 {[%emt 0:00:05]} 7. a4 {[%emt 0:00:36]} Rb8 {[%emt 0:00:05]} 8. c3 {[%emt 0:04:04]} d6 {[%emt 0:00:14]} 9. d4 {[%emt 0:00:06]} Bb6 {[%emt 0:00:05]} 10. a5 {[%emt 0:00:05]} Ba7 {[%emt 0:00:07]} 11. h3 {[%emt 0:00:07]} O-O {[%emt 0:00:52]} 12. Be3 {[%emt 0:00:07]} Ra8 {[%emt 0:00:23]} 13. Qe2 {[%emt 0:00:35]} h6 {[%emt 0:05:50]} 14. Rd1 {[%emt 0:00:35]} Re8 {[%emt 0:01:46]} 15. Nbd2 {[%emt 0:02:51]} Bb7 {[%emt 0:02:49]} 16. d5 {[%emt 0:00:47]} Ne7 {[%emt 0:00:40]} 17. Bxa7 {[%emt 0:04:40]} Rxa7 {[%emt 0:00:05]} 18. c4 {[%emt 0:00:04]} c6 {[%emt 0:08:12]} 19. dxc6 {[%emt 0:05:57]} Nxc6 {[%emt 0:05:22]} 20. cxb5 {[%emt 0:01:48]} Nxa5 {[%emt 0:17:56]} 21. Bxf7+ {[%emt 0:04:09]} Kxf7 {[%emt 0:00:32]} 22. b4 {[%emt 0:01:12]} axb5 {[%emt 0:06:39]} 23. Qxb5 {[%emt 0:02:29]} Ba6 {[%emt 0:02:43]} 24. Qxa5 {[%emt 0:03:36]} Qxa5 {[%emt 0:00:11]} 25. Rxa5 {[%emt 0:01:16]} Raa8 {[%emt 0:00:10]} 26. b5 {[%emt 0:06:22]} Bb7 {[%emt 0:00:10]} 27. Rxa8 {[%emt 0:00:05]} Rxa8 {[%emt 0:10:40]} 28. Nc4 {[%emt 0:01:13]} Nxe4 {[%emt 0:00:07]} 29. Rxd6 {[%emt 0:04:26]} Nxd6 {[%emt 0:01:56]} 30. Nxd6+ {[%emt 0:00:05]} Ke6 {[%emt 0:00:04]} 31. Nxb7 {[%emt 0:00:06]} Kd5 {[%emt 0:00:05]} 32. Nd2 {[%emt 0:06:17]} Ra7 {[%emt 0:01:01]} 33. Nd8 {[%emt 0:00:28]} Ra1+ {[%emt 0:05:09]} 34. Nf1 {[%emt 0:00:32]} Rb1 {[%emt 0:01:08]} 35. Nc6 {[%emt 0:03:24]} Rxb5 {[%emt 0:01:06]} 36. Ne7+ {[%emt 0:00:06]} Ke6 {[%emt 0:04:10]} 37. Ng6 {[%emt 0:00:06]} Rb1 {[%emt 0:02:36]} 38. g3 {[%emt 0:05:31]} e4 {[%emt 0:03:17]} 39. Kg2 {[%emt 0:01:10]} Rb2 {[%emt 0:00:52]} 40. Ne3 {[%emt 0:00:20]} Ra2 {[%emt 0:00:06]} 41. h4 {[%emt 0:03:26]} Kf6 {[%emt 0:01:23]} 42. Nf4 {[%emt 0:01:34]} g5 {[%emt 0:00:46]} 43. Nfd5+ {[%emt 0:00:13]} Ke5 {[%emt 0:00:34]} 44. h5 {[%emt 0:00:31]} Ra6 {[%emt 0:00:37]} 45. Ne7 {[%emt 0:02:46]} Re6 {[%emt 0:00:50]} 46. Ng8 {[%emt 0:01:45]} g4 {[%emt 0:01:12]} 47. Nxh6 {[%emt 0:01:40]} 1-0

[Event "9th RTU Open 2019"]
[Site "Riga"]
[Date "2019.08.06"]
[Round "3.15"]
[White "Varshini, V."]
[Black "Grigorov, Grigor"]
[Result "1/2-1/2"]
[ECO "B18"]
[WhiteElo "2087"]
[BlackElo "2501"]
[Annotator "ChessBase"]
[PlyCount "90"]
[EventDate "2019.08.05"]
[EventType "swiss"]
[EventCountry "LAT"]
[SourceTitle "playchess.com"]
[Source "ChessBase"]
[SourceQuality "1"]
[TimeControl "5400+30"]

1. e4 {[%emt 0:00:00]} c6 {[%emt 0:00:00]} 2. d4 {[%emt 0:00:00]} d5 {[%emt 0:00:00]} 3. Nc3 {[%emt 0:00:05]} dxe4 {[%emt 0:00:00]} 4. Nxe4 {[%emt 0:00:07]} Bf5 {[%emt 0:00:00]} 5. Ng3 {[%emt 0:00:14]} Bg6 {[%emt 0:00:05]} 6. Bc4 {[%emt 0:00:39]} Nf6 {[%emt 0:00:22]} 7. N1e2 {[%emt 0:01:36]} e6 {[%emt 0:00:27]} 8. h4 {[%emt 0:01:30]} h6 {[%emt 0:00:18]} 9. Nf4 {[%emt 0:01:20]} Bh7 {[%emt 0:00:10]} 10. c3 {[%emt 0:06:51]} Bd6 {[%emt 0:00:17]} 11. Nfh5 {[%emt 0:02:30]} O-O {[%emt 0:04:13]} 12. Nxf6+ {[%emt 0:11:20]} Qxf6 {[%emt 0:00:11]} 13. Qg4 {[%emt 0:02:02]} Qg6 {[%emt 0:05:19]} 14. Qxg6 {[%emt 0:02:34]} Bxg6 {[%emt 0:00:08]} 15. Ne2 {[%emt 0:13:18]} Nd7 {[%emt 0:02:41]} 16. Bf4 {[%emt 0:02:25]} Be7 {[%emt 0:03:31]} 17. O-O-O {[%emt 0:03:56]} b5 {[%emt 0:00:14]} 18. Bd3 {[%emt 0:01:42]} Bxd3 {[%emt 0:00:14]} 19. Rxd3 {[%emt 0:00:06]} Nb6 {[%emt 0:00:46]} 20. Bg3 {[%emt 0:05:48]} Rac8 {[%emt 0:06:03]} 21. Nf4 {[%emt 0:05:09]} Rfd8 {[%emt 0:01:39]} 22. Kc2 {[%emt 0:03:13]} Bd6 {[%emt 0:10:51]} 23. Re1 {[%emt 0:05:19]} Bxf4 {[%emt 0:02:33]} 24. Bxf4 {[%emt 0:00:06]} Nd5 {[%emt 0:00:04]} 25. Bg3 {[%emt 0:04:18]} c5 {[%emt 0:00:38]} 26. dxc5 {[%emt 0:01:52]} Rxc5 {[%emt 0:00:08]} 27. Rd4 {[%emt 0:01:55]} Rdc8 {[%emt 0:00:53]} 28. a4 {[%emt 0:07:04]} Rc4 {[%emt 0:02:16]} 29. Ree4 {[%emt 0:04:18]} Nf6 {[%emt 0:04:23]} 30. Rxc4 {[%emt 0:00:27]} bxc4 {[%emt 0:00:07]} 31. Rd4 {[%emt 0:00:18]} Nd5 {[%emt 0:00:09]} 32. a5 {[%emt 0:01:42]} a6 {[%emt 0:01:09]} 33. Bd6 {[%emt 0:00:15]} f6 {[%emt 0:02:13]} 34. Bb4 {[%emt 0:01:25]} Kf7 {[%emt 0:06:06]} 35. b3 {[%emt 0:00:45]} cxb3+ {[%emt 0:00:55]} 36. Kxb3 {[%emt 0:00:07]} g5 {[%emt 0:04:47]} 37. c4 {[%emt 0:04:56]} Nxb4 {[%emt 0:00:14]} 38. Kxb4 {[%emt 0:00:04]} Ke7 {[%emt 0:00:05]} 39. hxg5 {[%emt 0:03:46]} hxg5 {[%emt 0:00:07]} 40. Rd2 {[%emt 0:00:50]} Rc7 {[%emt 0:03:38]} 41. Rd3 {[%emt 0:02:14]} Rb7+ {[%emt 0:03:52]} 42. Kc5 {[%emt 0:01:22]} Rc7+ {[%emt 0:00:04]} 43. Kb4 {[%emt 0:00:36]} Rb7+ {[%emt 0:00:05]} 44. Kc5 {[%emt 0:00:03]} Rc7+ {[%emt 0:00:04]} 45. Kb4 {[%emt 0:01:35]} Rb7+ {[%emt 0:00:13]} 1/2-1/2